fUST/lending_fUST_20250804
["ID","MTS","AMOUNT","RATE_DAILY","PERIOD"]
[377272273,1754311836304,-693.8,0.00032876,2]
[377272274,1754311836314,-460.0,0.00032876,2]
[377272275,1754311836323,-927.17,0.00032876,2]
[377272276,1754311836333,-460.0,0.00032876,2]
[377272277,1754311836343,-1361.09,0.00032876,2]
[377272278,1754311836353,-460.0,0.00032876,2]
[377272279,1754311836363,-460.0,0.00032876,2]
[377272280,1754311836374,-460.0,0.00032876,2]
[377272281,1754311836384,-460.0,0.00032876,2]
[377272282,1754311836394,-467.01581858,0.00032876,2]
[377272283,1754311836404,-460.0,0.00032876,2]
[377272284,1754311836414,-290.57340762,0.00032876,2]
[377272285,1754311836424,-481.77,0.00032876,2]
[377272286,1754311836434,-460.0,0.00032876,2]
[377272287,1754311836444,-460.0,0.00032876,2]
[377272288,1754311836455,-460.0,0.00032876,2]
[377272289,1754311836465,-3589.47,0.00032876,2]
[377272290,1754311836475,-460.0,0.00032876,2]
[377272291,1754311836485,-715.99,0.00032876,2]
[377272292,1754311836495,-2376.05,0.00032876,2]
[377272293,1754311836504,-460.0,0.00032876,2]
[377272294,1754311836514,-460.0,0.00032876,2]
[377272295,1754311836524,-460.0,0.00032876,2]
[377272296,1754311836534,-460.0,0.00032876,2]
[377272297,1754311836543,-460.0,0.00032876,2]
[377272298,1754311836553,-460.0,0.00032876,2]
[377272299,1754311836563,-460.0,0.00032876,2]
[377272300,1754311836572,-580.31,0.00032876,2]
[377272301,1754311836582,-460.0,0.00032876,2]
[377272302,1754311836595,-460.0,0.00032876,2]
[377272303,1754311836605,-460.0,0.00032876,2]
[377272304,1754311836615,-460.0,0.00032876,2]
[377272305,1754311836626,-607.6,0.00032876,2]
[377272306,1754311836637,-460.0,0.00032876,2]
[377272307,1754311836648,-654.57,0.00032876,2]
[377272308,1754311836658,-460.0,0.00032876,2]
[377272309,1754311836668,-460.0,0.00032876,2]
[377272310,1754311836679,-460.0,0.00032876,2]
[377272311,1754311836690,-851.75,0.00032876,2]
[377272312,1754311836701,-460.0,0.00032876,2]
[377272313,1754311836873,-735.06,0.00032876,2]
[377272314,1754311836883,-678.36,0.00032876,2]
[377272315,1754311836893,-570.5,0.00032876,2]
[377272316,1754311836905,-2115.23,0.00032876,2]
[377272317,1754311836915,-460.0,0.00032876,2]
[377272318,1754311836926,-460.0,0.00032876,2]
[377272319,1754311836936,-460.0,0.00032876,2]
[377272320,1754311836946,-460.0,0.00032876,2]
[377272321,1754311836956,-460.0,0.00032876,2]
[377272322,1754311836965,-1345.28,0.00032876,2]
[377272323,1754311836976,-460.0,0.00032876,2]
[377272324,1754311836986,-1782.74,0.00032876,2]
[377272325,1754311836996,-472.01,0.00032876,2]
[377272326,1754311837006,-530.11,0.00032876,2]
[377272327,1754311837017,-460.0,0.00032876,2]
[377272328,1754311837027,-460.0,0.00032876,2]
[377272329,1754311837244,-802.19,0.00032876,2]
[377272330,1754311837255,-460.0,0.00032876,2]
[377272331,1754311837265,-643.57,0.00032876,2]
[377272332,1754311837275,-460.0,0.00032876,2]
[377272333,1754311837285,-3624.84,0.00032876,2]
[377272334,1754311837295,-460.0,0.00032876,2]
[377272335,1754311837305,-1233.37,0.00032876,2]
[377272336,1754311837314,-1018.18,0.00032876,2]
[377272337,1754311837324,-211.31930029,0.00032876,2]
[377272338,1754311837333,-886.75,0.00032876,2]
[377272339,1754311837342,-460.0,0.00032876,2]
[377272340,1754311837352,-1185.93,0.00032876,2]
[377272341,1754311837362,-3077.58,0.00032876,2]
[377272342,1754311837373,-460.0,0.00032876,2]
[377272343,1754311837382,-460.0,0.00032876,2]
[377272344,1754311837392,-499.06,0.00032876,2]
[377272345,1754311837402,-460.0,0.00032876,2]
[377272346,1754311837412,-488.53,0.00032876,2]
[377272347,1754311837422,-460.0,0.00032876,2]
[377272348,1754311837431,-460.0,0.00032876,2]
[377272349,1754311837441,-460.0,0.00032876,2]
[377272350,1754311837450,-460.0,0.00032876,2]
[377272351,1754311837460,-840.41,0.00032876,2]
[377272352,1754311837469,-3392.28,0.00032876,2]
[377272353,1754311837479,-807.42,0.00032876,2]
[377272354,1754311837488,-460.0,0.00032876,2]
[377272355,1754311837499,-1119.24,0.00032876,2]
[377272356,1754311837508,-631.58,0.00032876,2]
[377272357,1754311837518,-953.89,0.00032876,2]
[377272358,1754311837527,-460.0,0.00032876,2]
[377272359,1754311837537,-460.0,0.00032876,2]
[377272360,1754311837547,-460.0,0.00032876,2]
[377272361,1754311837556,-565.28,0.00032876,2]
[377272362,1754311837565,-460.0,0.00032876,2]
[377272363,1754311837575,-40833.77,0.000329,14]
[377272364,1754311837584,-151.0,0.000329,18]
[377272365,1754311837595,-2808.4,0.000329,7]
[377272366,1754311837604,-3000.0,0.00032912,5]
[377272367,1754311837614,-1432.26644297,0.00032918,2]
[377272368,1754311837628,-11667.14697414,0.00032983,2]
[377272369,1754311837639,-1500.0,0.00033,2]
[377272370,1754311837648,-1500.0,0.00033,2]
[377272371,1754311837658,-1500.0,0.00033,2]
[377272372,1754311837668,-1500.0,0.00033,2]
[377272373,1754311837678,-1500.0,0.00033,2]
[377272374,1754311837688,-1500.0,0.00033,2]
[377272375,1754311837698,-1500.0,0.00033,2]
[377272376,1754311837707,-1500.0,0.00033,2]
[377272377,1754311837717,-1523.01,0.00033,2]
[377272378,1754311837727,-1800.0,0.00033,2]
[377272379,1754311837737,-1500.0,0.00033,2]
[377272380,1754311837746,-156.45593,0.00033024,30]
[377272381,1754311837756,-158.355319,0.00033024,30]
[377272382,1754311837766,-360.0,0.00033066,2]
[377272383,1754311837775,-350.0,0.00033068,5]
[377272384,1754311837784,-1500.0,0.00033068,5]
[377272385,1754311837794,-3859.61540446,0.00033072,28]
[377272386,1754311837803,-200.0,0.00033119,15]
[377272387,1754311837813,-200.0,0.00033119,15]
[377272388,1754311837822,-200.0,0.00033119,15]
[377272389,1754311837832,-270.89,0.00033122,120]
[377272390,1754311837842,-150.5,0.00033132,120]
[377272391,1754311837854,-155.0,0.00033142,2]
[377272392,1754311837864,-150.5,0.00033142,120]
[377272393,1754311837875,-504.9755767,0.00033148,5]
[377272394,1754311837885,-492.88,0.0003315,2]
[377272395,1754311837896,-460.0,0.0003315,2]
[377272396,1754311837906,-460.0,0.0003315,2]
[377272397,1754311837915,-1581.02,0.0003315,2]
[377272398,1754311837925,-460.0,0.0003315,2]
[377272399,1754311837936,-460.0,0.0003315,2]
[377272400,1754311837945,-761.43,0.0003315,2]
[377272401,1754311837954,-460.0,0.0003315,2]
[377272402,1754311837964,-1147.94,0.0003315,2]
[377272403,1754311837974,-460.0,0.0003315,2]
[377272404,1754311837984,-460.0,0.0003315,2]
[377272405,1754311837994,-460.0,0.0003315,2]
[377272406,1754311838004,-460.0,0.0003315,2]
[377272407,1754311838014,-460.0,0.0003315,2]
[377272408,1754311838024,-460.0,0.0003315,2]
[377272409,1754311838033,-460.0,0.0003315,2]
[377272410,1754311838043,-460.0,0.0003315,2]
[377272411,1754311838052,-460.0,0.0003315,2]
[377272412,1754311838061,-460.0,0.0003315,2]
[377272413,1754311838071,-1093.34,0.0003315,2]
[377272414,1754311838081,-821.02,0.0003315,2]
[377272415,1754311838090,-460.0,0.0003315,2]
[377272416,1754311838101,-460.0,0.0003315,2]
[377272417,1754311838111,-642.65,0.0003315,2]
[377272419,1754311838123,-460.0,0.0003315,2]
[377272421,1754311838133,-460.0,0.0003315,2]
[377272422,1754311838143,-8561.12,0.0003315,2]
[377272423,1754311838153,-460.0,0.0003315,2]
[377272424,1754311838163,-460.0,0.0003315,2]
[377272425,1754311838173,-168.26841844,0.0003315,2]
[377272427,1754311838183,-460.0,0.0003315,2]
[377272428,1754311838192,-536.98,0.0003315,2]
[377272430,1754311838202,-151.0,0.0003315,14]
[377272431,1754311838213,-685.73,0.0003315,2]
[377272432,1754311838223,-467.54,0.0003315,2]
[377272433,1754311838233,-460.0,0.0003315,2]
[377272434,1754311838242,-460.0,0.0003315,2]
[377272435,1754311838251,-460.0,0.0003315,2]
[377272436,1754311838261,-460.0,0.0003315,2]
[377272437,1754311838269,-151.0,0.0003315,14]
[377272438,1754311838279,-971.43,0.0003315,2]
[377272439,1754311838289,-1113.28,0.0003315,2]
[377272440,1754311838298,-565.3,0.0003315,2]
[377272441,1754311838307,-460.62,0.0003315,2]
[377272442,1754311838317,-8976.9,0.0003315,2]
[377272443,1754311838327,-4006.22,0.0003315,2]
[377272444,1754311838336,-693.8,0.0003315,2]
[377272445,1754311838346,-460.0,0.0003315,2]
[377272446,1754311838355,-927.17,0.0003315,2]
[377272447,1754311838365,-460.0,0.0003315,2]
[377272448,1754311838376,-1361.09,0.0003315,2]
[377272449,1754311838385,-460.0,0.0003315,2]
[377272450,1754311838395,-460.0,0.0003315,2]
[377272451,1754311838404,-460.0,0.0003315,2]
[377272452,1754311838414,-460.0,0.0003315,2]
[377272453,1754311838424,-481.77,0.0003315,2]
[377272454,1754311838433,-460.0,0.0003315,2]
[377272455,1754311838442,-460.0,0.0003315,2]
[377272456,1754311838451,-460.0,0.0003315,2]
[377272457,1754311838461,-3589.47,0.0003315,2]
[377272458,1754311838470,-715.99,0.0003315,2]
[377272459,1754311838480,-460.0,0.0003315,2]
[377272460,1754311838490,-2376.05,0.0003315,2]
[377272461,1754311838499,-460.0,0.0003315,2]
[377272462,1754311838509,-460.0,0.0003315,2]
[377272463,1754311838518,-592.16905637,0.0003315,2]
[377272464,1754311838528,-460.0,0.0003315,2]
[377272465,1754311838538,-460.0,0.0003315,2]
[377272466,1754311838548,-580.31,0.0003315,2]
[377272467,1754311838557,-460.0,0.0003315,2]
[377272468,1754311838567,-460.0,0.0003315,2]
[377272469,1754311838581,-460.0,0.0003315,2]
[377272470,1754311838591,-607.6,0.0003315,2]
[377272471,1754311838601,-460.0,0.0003315,2]
[377272472,1754311838610,-654.57,0.0003315,2]
[377272473,1754311838621,-460.0,0.0003315,2]
[377272474,1754311838630,-460.0,0.0003315,2]
[377272475,1754311838639,-851.75,0.0003315,2]
[377272476,1754311838650,-460.0,0.0003315,2]
[377272477,1754311838660,-735.06,0.0003315,2]
[377272478,1754311838670,-678.36,0.0003315,2]
[377272479,1754311838680,-2115.23,0.0003315,2]
[377272480,1754311838689,-570.5,0.0003315,2]
[377272481,1754311838699,-460.0,0.0003315,2]
[377272482,1754311838708,-460.0,0.0003315,2]
[377272483,1754311838718,-460.0,0.0003315,2]
[377272484,1754311838728,-1345.28,0.0003315,2]
[377272485,1754311838738,-460.0,0.0003315,2]
[377272486,1754311838748,-1782.74,0.0003315,2]
[377272487,1754311838757,-472.01,0.0003315,2]
[377272488,1754311838766,-530.11,0.0003315,2]
[377272489,1754311838775,-460.0,0.0003315,2]
[377272490,1754311838785,-460.0,0.0003315,2]
[377272491,1754311838795,-802.19,0.0003315,2]
[377272492,1754311838805,-460.0,0.0003315,2]
[377272493,1754311838814,-643.57,0.0003315,2]
[377272494,1754311838824,-460.0,0.0003315,2]
[377272495,1754311838834,-3624.84,0.0003315,2]
[377272496,1754311838844,-1233.37,0.0003315,2]
[377272497,1754311838858,-1018.18,0.0003315,2]
[377272498,1754311838867,-886.75,0.0003315,2]
[377272499,1754311838878,-1185.93,0.0003315,2]
[377272500,1754311838889,-3077.58,0.0003315,2]
[377272501,1754311838898,-544.94085315,0.0003315,2]
[377272502,1754311838908,-460.0,0.0003315,2]
[377272503,1754311838918,-499.06,0.0003315,2]
[377272504,1754311838929,-460.0,0.0003315,2]
[377272505,1754311838939,-488.53,0.0003315,2]
[377272506,1754311838948,-460.0,0.0003315,2]
[377272507,1754311838958,-460.0,0.0003315,2]
[377272508,1754311838967,-840.41,0.0003315,2]
[377272509,1754311838977,-3392.28,0.0003315,2]
[377272510,1754311838987,-807.42,0.0003315,2]
[377272511,1754311838996,-460.0,0.0003315,2]
[377272512,1754311839006,-1119.24,0.0003315,2]
[377272513,1754311839015,-631.58,0.0003315,2]
[377272514,1754311839025,-953.89,0.0003315,2]
[377272515,1754311839035,-460.0,0.0003315,2]
[377272516,1754311839044,-460.0,0.0003315,2]
[377272517,1754311839053,-565.28,0.0003315,2]
[377272518,1754311839064,-479.47525283,0.0003315,2]
[377272519,1754311839073,-200.0,0.00033161,10]
[377272520,1754311839083,-151.0,0.00033162,14]
[377272521,1754311839093,-155.772803,0.00033162,14]
[377272522,1754311839102,-276.717682,0.00033162,14]
[377272523,1754311839111,-151.0,0.00033162,14]
[377272524,1754311839121,-152.060871,0.00033162,14]
[377272525,1754311839132,-151.0,0.00033162,14]
[377272526,1754311839141,-151.0,0.00033162,14]
[377272527,1754311839150,-151.0,0.00033162,14]
[377272528,1754311839160,-151.0,0.00033162,14]
[377272529,1754311839169,-370000.0,0.00033162,2]
[377272530,1754311839180,-175.995246,0.00033165,2]
[377272531,1754311839189,-500.0,0.00033173,5]
[377272532,1754311839199,-500.0,0.00033173,5]
[377272533,1754311839208,-500.0,0.00033173,5]
[377272534,1754311839218,-500.0,0.00033173,5]
[377272535,1754311839228,-500.0,0.00033173,5]
[377272536,1754311839237,-500.88405749,0.00033173,5]
[377272537,1754311839246,-500.0,0.00033173,5]
[377272538,1754311839256,-502.10077524,0.00033173,5]
[377272539,1754311839266,-501.34572381,0.00033173,5]
[377272540,1754311839276,-500.0,0.00033173,5]
[377272541,1754311839285,-500.0,0.00033173,5]
[377272542,1754311839295,-314.91015125,0.00033173,5]
[377272543,1754311839304,-500.0,0.00033173,2]
[377272544,1754311839313,-500.0,0.00033173,5]
[377272545,1754311839323,-500.0,0.00033173,5]
[377272546,1754311839332,-500.0,0.00033173,5]
[377272548,1754311839342,-500.0,0.00033173,5]
[377272550,1754311839351,-500.0,0.00033173,5]
[377272552,1754311839360,-500.0,0.00033173,5]
[377272553,1754311839370,-500.0,0.00033173,5]
[377272555,1754311839379,-604.94525704,0.00033173,5]
[377272558,1754311839389,-500.0,0.00033173,5]
[377272559,1754311839398,-389.01225488,0.00033173,5]
[377272562,1754311839408,-500.0,0.00033173,5]
[377272564,1754311839418,-502.87957684,0.00033173,5]
[377272565,1754311839427,-500.0,0.00033173,2]
[377272567,1754311839437,-503.33346352,0.00033173,5]
[377272569,1754311839446,-502.16831024,0.00033173,5]
[377272571,1754311839456,-502.02636526,0.00033173,5]
[377272573,1754311839466,-500.0,0.00033173,5]
[377272575,1754311839476,-500.0,0.00033173,5]
[377272577,1754311839485,-501.71232543,0.00033173,5]
[377272579,1754311839495,-501.71365784,0.00033173,5]
[377272581,1754311839504,-500.0,0.00033173,5]
[377272583,1754311839514,-500.0,0.00033173,5]
[377272596,1754311839635,-154.17643414,0.00033173,5]
[377272599,1754311839644,-500.0,0.00033173,5]
[377272601,1754311839654,-500.0,0.00033173,5]
[377272602,1754311839664,-500.0,0.00033173,5]
[377272604,1754311839674,-503.79266212,0.00033173,5]
[377272606,1754311839684,-504.55421228,0.00033173,5]
[377272608,1754311839694,-460.0,0.00033249,2]
[377272611,1754311839703,-460.0,0.00033249,2]
[377272612,1754311839712,-460.0,0.00033249,2]
[377272615,1754311839722,-460.0,0.00033249,2]
[377272617,1754311839732,-460.0,0.00033249,2]
[377272619,1754311839741,-500.0,0.00033249,2]
[377272620,1754311839750,-460.0,0.00033249,2]
[377272622,1754311839759,-460.0,0.00033249,2]
[377272624,1754311839771,-467.46524095,0.00033249,2]
[377272626,1754311839780,-460.0,0.00033249,2]
[377272629,1754311839790,-460.0,0.00033249,2]
[377272630,1754311839800,-460.0,0.00033249,2]
[377272632,1754311839810,-460.0,0.00033249,2]
[377272634,1754311839819,-460.0,0.00033249,2]
[377272636,1754311839829,-718.91,0.00033249,2]
[377272638,1754311839838,-460.0,0.00033249,2]
[377272640,1754311839849,-353.89308361,0.00033249,2]
[377272643,1754311839864,-460.0,0.00033249,2]
[377272645,1754311839874,-1113.04,0.00033249,2]
[377272647,1754311839885,-460.0,0.00033249,2]
[377272649,1754311839894,-1149.14,0.00033249,2]
[377272651,1754311839904,-465.14362087,0.00033249,2]
[377272652,1754311839914,-499.4,0.00033249,2]
[377272655,1754311839924,-460.0,0.00033249,2]
[377272656,1754311839933,-460.0,0.00033249,2]
[377272659,1754311839945,-460.0,0.00033249,2]
[377272661,1754311839954,-460.0,0.00033249,2]
[377272663,1754311839963,-492.25,0.00033249,2]
[377272664,1754311839974,-460.0,0.00033249,2]
[377272667,1754311839984,-460.0,0.00033249,2]
[377272668,1754311839994,-460.0,0.00033249,2]
[377272670,1754311840003,-460.0,0.00033249,2]
[377272672,1754311840013,-1294.69,0.00033249,2]
[377272674,1754311840022,-822.77,0.00033249,2]
[377272676,1754311840031,-460.0,0.00033249,2]
[377272678,1754311840042,-460.0,0.00033352,2]
[377272680,1754311840052,-892.09,0.00033352,2]
[377272682,1754311840062,-509.98,0.00033352,2]
[377272684,1754311840071,-460.0,0.00033352,2]
[377272686,1754311840081,-460.0,0.00033352,2]
[377272688,1754311840090,-460.0,0.00033352,2]
[377272691,1754311840100,-477.41,0.00033352,2]
[377272692,1754311840109,-460.0,0.00033352,2]
[377272694,1754311840119,-518.99,0.00033363,2]
[377272697,1754311840133,-524.14,0.00033363,2]
[377272699,1754311840142,-600.11,0.00033363,2]
[377272700,1754311840151,-460.0,0.00033363,2]
[377272703,1754311840161,-593.56,0.00033363,2]
[377272707,1754311840171,-460.0,0.00033363,2]
[377272709,1754311840181,-1051.0,0.00033363,2]
[377272710,1754311840190,-11950.49,0.00033363,2]
[377272712,1754311840199,-1177.57,0.00033363,2]
[377272714,1754311840209,-460.0,0.00033371,2]
[377272716,1754311840218,-340.86564721,0.00033371,2]
[377272719,1754311840228,-460.0,0.00033371,2]
[377272721,1754311840237,-460.0,0.00033371,2]
[377272723,1754311840249,-460.0,0.00033371,2]
[377272724,1754311840259,-499.76,0.00033371,2]
[377272726,1754311840269,-460.0,0.00033371,2]
[377272729,1754311840278,-460.0,0.00033371,2]
[377272730,1754311840288,-460.0,0.00033371,2]
[377272732,1754311840298,-460.0,0.00033371,2]
[377272734,1754311840307,-3424.85223363,0.00033372,2]
[377272736,1754311840317,-460.0,0.00033372,2]
[377272739,1754311840326,-292.57962463,0.00033372,2]
[377272741,1754311840335,-460.0,0.00033372,2]
[377272742,1754311840345,-460.0,0.00033372,2]
[377272744,1754311840354,-460.0,0.00033372,2]
[377272746,1754311840363,-460.0,0.00033372,2]
[377272749,1754311840373,-460.0,0.00033372,2]
[377272751,1754311840383,-460.0,0.00033372,2]
[377272753,1754311840392,-460.0,0.00033372,2]
[377272754,1754311840402,-748.92,0.00033372,2]
[377272757,1754311840411,-460.0,0.00033372,2]
[377272758,1754311840421,-460.0,0.00033372,2]
[377272760,1754311840430,-460.0,0.00033372,2]
[377272762,1754311840440,-460.0,0.00033372,2]
[377272764,1754311840449,-467.21,0.00033372,2]
[377272766,1754311840458,-583.19966478,0.00033372,2]
[377272768,1754311840467,-460.0,0.00033372,2]
[377272771,1754311840477,-451.09934311,0.00033372,2]
[377272773,1754311840486,-460.0,0.00033372,2]
[377272775,1754311840496,-460.0,0.00033372,2]
[377272777,1754311840505,-460.0,0.00033372,2]
[377272778,1754311840514,-460.0,0.00033372,2]
[377272780,1754311840524,-460.0,0.00033372,2]
[377272782,1754311840534,-470.15339109,0.00033372,2]
[377272784,1754311840543,-460.0,0.00033372,2]
[377272787,1754311840554,-460.0,0.00033372,2]
[377272789,1754311840563,-460.0,0.00033372,2]
[377272791,1754311840572,-460.0,0.00033372,2]
[377272793,1754311840581,-460.0,0.00033372,2]
[377272794,1754311840590,-310.29429887,0.00033372,2]
[377272797,1754311840600,-460.0,0.00033372,2]
[377272798,1754311840609,-460.0,0.00033372,2]
[377272800,1754311840618,-460.0,0.00033372,2]
[377272802,1754311840627,-460.0,0.00033372,2]
[377272804,1754311840637,-460.0,0.00033372,2]
[377272806,1754311840647,-460.0,0.00033372,2]
[377272808,1754311840656,-460.0,0.00033372,2]
[377272810,1754311840665,-460.0,0.00033372,2]
[377272812,1754311840674,-460.0,0.00033372,2]
[377272814,1754311840684,-460.0,0.00033372,2]
[377272816,1754311840693,-572.96,0.00033372,2]
[377272818,1754311840703,-460.0,0.00033372,2]
[377272820,1754311840712,-460.52710938,0.00033372,2]
[377272822,1754311840721,-460.73986513,0.00033372,2]
[377272824,1754311840730,-460.0,0.00033372,2]
[377272826,1754311840739,-460.0,0.00033372,2]
[377272828,1754311840748,-460.0,0.00033372,2]
[377272830,1754311840758,-524.37,0.00033372,2]
[377272832,1754311840768,-460.0,0.00033372,2]
[377272834,1754311840777,-460.0,0.00033372,2]
[377272836,1754311840786,-461.49465452,0.00033372,2]
[377272838,1754311840795,-460.0,0.00033372,2]
[377272840,1754311840804,-460.8924416,0.00033372,2]
[377272842,1754311840814,-460.0,0.00033372,2]
[377272844,1754311840823,-460.0,0.00033372,2]
[377272846,1754311840832,-930.83,0.00033372,2]
[377272848,1754311840841,-569.32420084,0.00033372,2]
[377272850,1754311840852,-2094.74,0.00033382,2]
[377272852,1754311840864,-499.33,0.00033382,2]
[377272854,1754311840873,-554.85,0.00033382,2]
[377272856,1754311840882,-460.0,0.00033382,2]
[377272858,1754311840891,-737.24,0.00033382,2]
[377272860,1754311840902,-460.0,0.00033382,2]
[377272862,1754311840912,-460.0,0.00033382,2]
[377272864,1754311840921,-5894.54,0.00033382,2]
[377272866,1754311840932,-460.0,0.00033382,2]
[377272868,1754311840942,-854.96,0.00033382,2]
[377272870,1754311840951,-460.0,0.00033382,2]
[377272872,1754311840961,-460.0,0.00033382,2]
[377272874,1754311840970,-460.0,0.00033382,2]
[377272876,1754311840980,-460.0,0.00033382,2]
[377272878,1754311840989,-4494.32,0.00033382,2]
[377272880,1754311840999,-11890.23,0.00033382,2]
[377272882,1754311841008,-460.0,0.00033382,2]
[377272884,1754311841019,-460.0,0.00033382,2]
[377272886,1754311841028,-460.0,0.00033382,2]
[377272888,1754311841038,-3023.81,0.00033382,2]
[377272890,1754311841047,-460.0,0.00033382,2]
[377272892,1754311841056,-3859.61540446,0.00033383,28]
[377272894,1754311841066,-461.04573605,0.00033383,2]
[377272896,1754311841075,-460.0,0.00033383,2]
[377272898,1754311841084,-460.0,0.00033383,2]
[377272900,1754311841094,-460.0,0.00033383,2]
[377272902,1754311841103,-460.0,0.00033383,2]
[377272904,1754311841112,-484.97,0.00033383,2]
[377272906,1754311841123,-460.0,0.00033383,2]
[377272908,1754311841133,-460.0,0.00033383,2]
[377272910,1754311841142,-460.0,0.00033383,2]
[377272912,1754311841151,-460.0,0.00033383,2]
[377272914,1754311841160,-460.0,0.00033383,2]
[377272916,1754311841169,-460.0,0.00033383,2]
[377272918,1754311841178,-462.29011634,0.00033383,2]
[377272920,1754311841187,-460.0,0.00033383,2]
[377272922,1754311841196,-460.0,0.00033383,2]
[377272923,1754311841205,-460.0,0.00033383,2]
[377272926,1754311841215,-458.64935976,0.00033383,2]
[377272928,1754311841225,-521.02407317,0.00033383,2]
[377272930,1754311841234,-462.06087554,0.00033383,2]
[377272932,1754311841244,-460.0,0.00033383,2]
[377272933,1754311841253,-460.0,0.00033383,2]
[377272935,1754311841262,-460.0,0.00033383,2]
[377272937,1754311841271,-460.0,0.00033383,2]
[377272939,1754311841281,-460.0,0.00033383,2]
[377272941,1754311841290,-463.30665007,0.00033383,2]
[377272943,1754311841299,-466.81007712,0.00033383,2]
[377272946,1754311841310,-460.0,0.00033383,2]
[377272947,1754311841323,-460.0,0.00033383,2]
[377272949,1754311841334,-460.0,0.00033383,2]
[377272951,1754311841344,-492.88,0.00033424,2]
[377272953,1754311841354,-187.95161207,0.00033424,2]
[377272955,1754311841363,-1581.02,0.00033424,2]
[377272957,1754311841374,-460.0,0.00033424,2]
[377272960,1754311841384,-460.0,0.00033424,2]
[377272961,1754311841394,-761.43,0.00033424,2]
[377272963,1754311841404,-460.0,0.00033424,2]
[377272966,1754311841413,-1147.94,0.00033424,2]
[377272968,1754311841423,-460.0,0.00033424,2]
[377272969,1754311841432,-460.0,0.00033424,2]
[377272971,1754311841442,-283.84695967,0.00033424,2]
[377272973,1754311841451,-460.0,0.00033424,2]
[377272976,1754311841461,-460.0,0.00033424,2]
[377272978,1754311841470,-460.0,0.00033424,2]
[377272980,1754311841480,-460.0,0.00033424,2]
[377272981,1754311841490,-460.0,0.00033424,2]
[377272984,1754311841499,-460.0,0.00033424,2]
[377272985,1754311841509,-460.0,0.00033424,2]
[377272988,1754311841519,-1093.34,0.00033424,2]
[377272990,1754311841528,-821.02,0.00033424,2]
[377272992,1754311841538,-231.2112684,0.00033424,2]
[377272993,1754311841548,-460.0,0.00033424,2]
[377272996,1754311841558,-642.65,0.00033424,2]
[377272997,1754311841568,-596.82141061,0.00033424,2]
[377273000,1754311841577,-460.0,0.00033424,2]
[377273002,1754311841587,-8561.12,0.00033424,2]
[377273004,1754311841596,-460.0,0.00033424,2]
[377273006,1754311841607,-460.0,0.00033424,2]
[377273008,1754311841616,-536.98,0.00033424,2]
[377273010,1754311841628,-685.73,0.00033424,2]
[377273012,1754311841637,-467.54,0.00033424,2]
[377273014,1754311841647,-460.0,0.00033424,2]
[377273016,1754311841656,-460.0,0.00033424,2]
[377273018,1754311841665,-460.0,0.00033424,2]